[Event "*** Titled Tuesday 3|2 Blitz"]
[Site "Chess.com"]
[Date "2016.05.03"]
[Round "1"]
[White "armago"]
[Black "Yaacovn"]
[Result "0-1"]
[WhiteElo "2222"]
[BlackElo "2551"]
[TimeControl "180+2"]
[EndTime "11:03:03 PDT"]
[Termination "Yaacovn won by resignation"]

1. d4 {[%clk 0:02:57.9]} 1... Nf6 {[%clk 0:02:57.6]} 2. c4 {[%clk 0:02:57.5]}
2... e6 {[%clk 0:02:53]} 3. Nc3 {[%clk 0:02:58.3]} 3... Bb4 {[%clk 0:02:49.4]}
4. e3 {[%clk 0:02:59.3]} 4... Bxc3+ {[%clk 0:02:50]} 5. bxc3 {[%clk 0:02:59.5]}
5... c5 {[%clk 0:02:51.5]} 6. Bd3 {[%clk 0:02:59]} 6... Nc6 {[%clk 0:02:52.1]}
7. Nf3 {[%clk 0:02:59]} 7... d6 {[%clk 0:02:53]} 8. O-O {[%clk 0:02:58.8]} 8...
e5 {[%clk 0:02:54.5]} 9. d5 {[%clk 0:02:48.7]} 9... Ne7 {[%clk 0:02:53]} 10. Nd2
{[%clk 0:02:47.6]} 10... O-O {[%clk 0:02:53.2]} 11. f3 {[%clk 0:02:48.7]} 11...
Ng6 {[%clk 0:02:53.4]} 12. Re1 {[%clk 0:02:47.4]} 12... Re8 {[%clk 0:02:54.8]}
13. e4 {[%clk 0:02:40]} 13... Nf4 {[%clk 0:02:50.7]} 14. Bc2 {[%clk 0:02:33.9]}
14... N6h5 {[%clk 0:02:50.5]} 15. Nf1 {[%clk 0:02:34.5]} 15... Qg5 {[%clk
0:02:48.3]} 16. Ne3 {[%clk 0:02:18]} 16... Nh3+ {[%clk 0:02:41.4]} 17. Kf1
{[%clk 0:02:18.4]} 17... Qg3 {[%clk 0:02:38.3]} 18. gxh3 {[%clk 0:02:04.8]}
18... Bxh3+ {[%clk 0:02:35.5]} 19. Ke2 {[%clk 0:02:05.5]} 19... Qxh2+ {[%clk
0:02:35.2]} 0-1

[Event "*** Titled Tuesday 3|2 Blitz"]
[Site "Chess.com"]
[Date "2016.05.03"]
[Round "1"]
[White "Er_is_geen_hoop_meer"]
[Black "exoticprincess"]
[Result "0-1"]
[WhiteElo "2342"]
[BlackElo "2768"]
[TimeControl "180+2"]
[EndTime "11:04:28 PDT"]
[Termination "exoticprincess won by resignation"]

1. Nf3 {[%clk 0:02:59.4]} 1... Nf6 {[%clk 0:02:56.3]} 2. g3 {[%clk 0:02:59.5]}
2... d5 {[%clk 0:02:54.5]} 3. Bg2 {[%clk 0:03:00.9]} 3... c6 {[%clk 0:02:56.2]}
4. O-O {[%clk 0:03:02.5]} 4... Bg4 {[%clk 0:02:57]} 5. Ne5 {[%clk 0:03:03.4]}
5... Bf5 {[%clk 0:02:55.7]} 6. d4 {[%clk 0:03:04.5]} 6... Nbd7 {[%clk
0:02:55.5]} 7. Nd3 {[%clk 0:03:05.3]} 7... e6 {[%clk 0:02:54.5]} 8. b3 {[%clk
0:03:06]} 8... h5 {[%clk 0:02:52.8]} 9. c4 {[%clk 0:02:59]} 9... h4 {[%clk
0:02:52.5]} 10. Bb2 {[%clk 0:02:57.8]} 10... Bd6 {[%clk 0:02:52]} 11. Ba3 {[%clk
0:02:55.8]} 11... Bxa3 {[%clk 0:02:47.9]} 12. Nxa3 {[%clk 0:02:57.7]} 12... Ng4
{[%clk 0:02:43.6]} 13. h3 {[%clk 0:02:39.1]} 13... hxg3 {[%clk 0:02:43.6]} 14.
hxg4 {[%clk 0:02:28.6]} 14... Qh4 {[%clk 0:02:44.3]} 15. fxg3 {[%clk 0:02:29.9]}
15... Qh2+ {[%clk 0:02:44.5]} 16. Kf2 {[%clk 0:02:31]} 16... Be4 {[%clk
0:02:46.1]} 17. Rg1 {[%clk 0:01:39.8]} 17... Rh3 {[%clk 0:02:43.5]} 18. Ne1
{[%clk 0:01:39.4]} 18... Nf6 {[%clk 0:02:41.3]} 19. Kf1 {[%clk 0:01:35.5]} 19...
Nxg4 {[%clk 0:02:40.6]} 20. Qd2 {[%clk 0:01:32.1]} 20... Qxg3 {[%clk 0:02:41.7]}
21. e3 {[%clk 0:01:26.1]} 21... Nxe3+ {[%clk 0:02:42.4]} 22. Ke2 {[%clk
0:01:27]} 22... Qg4+ {[%clk 0:02:42.9]} 23. Bf3 {[%clk 0:01:17.3]} 23... Rh2+
{[%clk 0:02:38.5]} 24. Kxe3 {[%clk 0:01:16.3]} 24... Qxg1+ {[%clk 0:02:39.6]}
25. Kf4 {[%clk 0:01:15.7]} 25... g5+ {[%clk 0:02:39.6]} 26. Ke5 {[%clk
0:01:16.5]} 26... Qg3+ {[%clk 0:02:35.6]} 27. Kf6 {[%clk 0:01:17.4]} 27... Rxd2
{[%clk 0:02:36.5]} 0-1

[Event "*** Titled Tuesday 3|2 Blitz"]
[Site "Chess.com"]
[Date "2016.05.03"]
[Round "1"]
[White "Danirod"]
[Black "Makalexa"]
[Result "0-1"]
[WhiteElo "2422"]
[BlackElo "2105"]
[TimeControl "180+2"]
[EndTime "11:04:42 PDT"]
[Termination "Makalexa won by resignation"]

1. e4 {[%clk 0:03:01.9]} 1... e5 {[%clk 0:03:00]} 2. Nf3 {[%clk 0:03:02.6]} 2...
Nc6 {[%clk 0:02:59.9]} 3. Bc4 {[%clk 0:03:03.4]} 3... Bc5 {[%clk 0:02:59.8]} 4.
O-O {[%clk 0:02:58.9]} 4... Nf6 {[%clk 0:02:57.5]} 5. d4 {[%clk 0:02:58.9]} 5...
Bxd4 {[%clk 0:02:57.6]} 6. Nxd4 {[%clk 0:02:59.9]} 6... Nxd4 {[%clk 0:02:56.8]}
7. f4 {[%clk 0:03:01.1]} 7... d6 {[%clk 0:02:52.4]} 8. fxe5 {[%clk 0:03:02]}
8... dxe5 {[%clk 0:02:53.5]} 9. Bg5 {[%clk 0:03:03.5]} 9... Qe7 {[%clk
0:02:50.6]} 10. Nc3 {[%clk 0:03:04.3]} 10... c6 {[%clk 0:02:50.2]} 11. a4 {[%clk
0:02:57.5]} 11... Be6 {[%clk 0:02:50.3]} 12. Bxf6 {[%clk 0:02:57.8]} 12... gxf6
{[%clk 0:02:50.9]} 13. Bd3 {[%clk 0:02:54]} 13... Rg8 {[%clk 0:02:51]} 14. Qh5
{[%clk 0:02:51.8]} 14... O-O-O {[%clk 0:02:51.8]} 15. a5 {[%clk 0:02:50.7]}
15... Rg5 {[%clk 0:02:50.4]} 16. Qh6 {[%clk 0:02:46.7]} 16... Rdg8 {[%clk
0:02:47.3]} 17. g3 {[%clk 0:02:47.9]} 17... R8g6 {[%clk 0:02:43.9]} 18. Qxh7
{[%clk 0:02:43]} 18... Qf8 {[%clk 0:02:43.1]} 19. Nd5 {[%clk 0:01:33.6]} 19...
Rh6 {[%clk 0:02:33.3]} 20. Nxf6 {[%clk 0:01:34.7]} 20... Rxh7 {[%clk 0:02:29.5]}
21. Nxh7 {[%clk 0:01:36.6]} 21... Qg7 {[%clk 0:02:21.1]} 22. Nxg5 {[%clk
0:01:37.5]} 22... Qxg5 {[%clk 0:02:22.7]} 23. Rf2 {[%clk 0:01:38.5]} 23... Qe3
{[%clk 0:02:13.4]} 24. a6 {[%clk 0:01:24.8]} 24... Bh3 {[%clk 0:02:08.5]} 25.
axb7+ {[%clk 0:01:24.9]} 25... Kb8 {[%clk 0:02:03.8]} 0-1

[Event "*** Titled Tuesday 3|2 Blitz"]
[Site "Chess.com"]
[Date "2016.05.03"]
[Round "1"]
[White "Spas_Kozhuharov"]
[Black "Entilza"]
[Result "1-0"]
[WhiteElo "2473"]
[BlackElo "2103"]
[TimeControl "180+2"]
[EndTime "11:04:57 PDT"]
[Termination "Spas_Kozhuharov won by resignation"]

1. d4 {[%clk 0:02:40.8]} 1... d5 {[%clk 0:02:54.6]} 2. c4 {[%clk 0:02:41.3]}
2... e6 {[%clk 0:02:53.7]} 3. Nc3 {[%clk 0:02:41.5]} 3... Nf6 {[%clk 0:02:53.5]}
4. cxd5 {[%clk 0:02:41.9]} 4... exd5 {[%clk 0:02:53.9]} 5. Bg5 {[%clk
0:02:42.4]} 5... Be7 {[%clk 0:02:53.8]} 6. e3 {[%clk 0:02:42.9]} 6... c6 {[%clk
0:02:50.5]} 7. Bd3 {[%clk 0:02:41.1]} 7... O-O {[%clk 0:02:47.6]} 8. Qc2 {[%clk
0:02:41.3]} 8... Nbd7 {[%clk 0:02:46.2]} 9. Nf3 {[%clk 0:02:42]} 9... Re8 {[%clk
0:02:44]} 10. O-O {[%clk 0:02:42.6]} 10... Nf8 {[%clk 0:02:43.3]} 11. h3 {[%clk
0:02:43.3]} 11... Ng6 {[%clk 0:02:40.5]} 12. Bxf6 {[%clk 0:02:40.5]} 12... Bxf6
{[%clk 0:02:40.4]} 13. b4 {[%clk 0:02:42.4]} 13... Be6 {[%clk 0:02:24.8]} 14. b5
{[%clk 0:02:42.5]} 14... Qd7 {[%clk 0:02:25.2]} 15. bxc6 {[%clk 0:02:42.4]}
15... bxc6 {[%clk 0:02:27.1]} 16. Kh2 {[%clk 0:02:30.3]} 16... c5 {[%clk
0:02:21.6]} 17. dxc5 {[%clk 0:02:29.9]} 17... Qc7+ {[%clk 0:02:20.5]} 18. g3
{[%clk 0:02:28.2]} 18... Qc6 {[%clk 0:02:21.1]} 19. Bb5 {[%clk 0:02:19.7]} 19...
Qxc5 {[%clk 0:02:09.4]} 20. Bxe8 {[%clk 0:02:21.6]} 20... Rxe8 {[%clk 0:02:09]}
21. Rac1 {[%clk 0:02:21.3]} 21... Ne5 {[%clk 0:02:03.8]} 22. Nd4 {[%clk
0:02:12.9]} 22... Qc8 {[%clk 0:01:58.8]} 23. Nxd5 {[%clk 0:02:10.2]} 23... Qd7
{[%clk 0:01:50.8]} 24. Nxf6+ {[%clk 0:02:08.8]} 24... gxf6 {[%clk 0:01:52.2]}
25. Nxe6 {[%clk 0:02:08.3]} 25... Qxe6 {[%clk 0:01:50]} 26. Rfd1 {[%clk
0:02:04.8]} 26... Nf3+ {[%clk 0:01:44.5]} 27. Kg2 {[%clk 0:02:05.8]} 27... Ng5
{[%clk 0:01:44.7]} 28. g4 {[%clk 0:02:00.9]} 1-0

[Event "*** Titled Tuesday 3|2 Blitz"]
[Site "Chess.com"]
[Date "2016.05.03"]
[Round "1"]
[White "Lector118"]
[Black "severomorskij"]
[Result "0-1"]
[WhiteElo "2306"]
[BlackElo "2599"]
[TimeControl "180+2"]
[EndTime "11:05:21 PDT"]
[Termination "severomorskij won by resignation"]

1. d4 {[%clk 0:03:01.9]} 1... Nf6 {[%clk 0:03:00.4]} 2. c4 {[%clk 0:03:01.5]}
2... e6 {[%clk 0:02:58.9]} 3. g3 {[%clk 0:03:02.2]} 3... c5 {[%clk 0:02:57.1]}
4. d5 {[%clk 0:03:03.1]} 4... exd5 {[%clk 0:02:58]} 5. cxd5 {[%clk 0:03:05]}
5... b5 {[%clk 0:02:59]} 6. Nf3 {[%clk 0:03:05.7]} 6... Bb7 {[%clk 0:02:58.1]}
7. e4 {[%clk 0:03:06.9]} 7... Nxe4 {[%clk 0:02:58.2]} 8. Bd3 {[%clk 0:03:07]}
8... Nd6 {[%clk 0:02:58.2]} 9. O-O {[%clk 0:03:06.4]} 9... Be7 {[%clk
0:02:59.2]} 10. Bf4 {[%clk 0:02:57]} 10... O-O {[%clk 0:02:59.2]} 11. Re1 {[%clk
0:02:56.7]} 11... Na6 {[%clk 0:02:42.9]} 12. Bxh7+ {[%clk 0:02:46.1]} 12... Kxh7
{[%clk 0:02:41.5]} 13. Rxe7 {[%clk 0:02:47.1]} 13... Qxe7 {[%clk 0:02:38.6]} 14.
Ng5+ {[%clk 0:02:47.9]} 14... Kg8 {[%clk 0:02:28.5]} 15. Qh5 {[%clk 0:02:40.7]}
15... Qe1+ {[%clk 0:02:28.2]} 16. Kg2 {[%clk 0:02:41.3]} 16... Bxd5+ {[%clk
0:02:29.1]} 17. f3 {[%clk 0:02:25.9]} 17... Qe2+ {[%clk 0:02:25.9]} 18. Kg1
{[%clk 0:01:38.4]} 18... Qd1+ {[%clk 0:02:19.6]} 19. Kg2 {[%clk 0:01:32.1]}
19... Qc2+ {[%clk 0:02:18.7]} 20. Nd2 {[%clk 0:01:33.5]} 20... Nc4 {[%clk
0:02:03.6]} 21. Rd1 {[%clk 0:01:06.2]} 21... Qg6 {[%clk 0:02:00]} 22. Qh4 {[%clk
0:01:03]} 22... f6 {[%clk 0:01:55.7]} 23. Nge4 {[%clk 0:00:55.5]} 23... Nxd2
{[%clk 0:01:54.1]} 24. Nxd2 {[%clk 0:00:52.7]} 24... Rfe8 {[%clk 0:01:54.5]} 0-1

[Event "*** Titled Tuesday 3|2 Blitz"]
[Site "Chess.com"]
[Date "2016.05.03"]
[Round "1"]
[White "saraswathii"]
[Black "flavettes"]
[Result "0-1"]
[WhiteElo "1962"]
[BlackElo "2386"]
[TimeControl "180+2"]
[EndTime "11:06:52 PDT"]
[Termination "flavettes won by resignation"]

1. e4 {[%clk 0:02:51.1]} 1... c5 {[%clk 0:03:00]} 2. Nf3 {[%clk 0:02:47.4]} 2...
Nc6 {[%clk 0:03:01.4]} 3. d3 {[%clk 0:02:40.7]} 3... g6 {[%clk 0:03:02.5]} 4. g3
{[%clk 0:02:35.6]} 4... Bg7 {[%clk 0:03:03.8]} 5. Bg2 {[%clk 0:02:33.4]} 5... e6
{[%clk 0:03:04.6]} 6. O-O {[%clk 0:02:28.8]} 6... Nge7 {[%clk 0:03:06]} 7. c3
{[%clk 0:02:26.4]} 7... O-O {[%clk 0:03:05.8]} 8. Qe2 {[%clk 0:02:18.3]} 8... d5
{[%clk 0:03:05.6]} 9. e5 {[%clk 0:02:16.4]} 9... b6 {[%clk 0:03:04.4]} 10. Bf4
{[%clk 0:02:10.4]} 10... a5 {[%clk 0:03:04.2]} 11. Nbd2 {[%clk 0:02:01.9]} 11...
h6 {[%clk 0:02:57.1]} 12. h4 {[%clk 0:01:55.4]} 12... a4 {[%clk 0:02:55.7]} 13.
a3 {[%clk 0:01:54.7]} 13... b5 {[%clk 0:02:56.1]} 14. g4 {[%clk 0:01:51.2]}
14... b4 {[%clk 0:02:52]} 15. axb4 {[%clk 0:01:36.1]} 15... cxb4 {[%clk
0:02:52.9]} 16. c4 {[%clk 0:01:26.7]} 16... Re8 {[%clk 0:02:23.1]} 17. Rfd1
{[%clk 0:01:21.4]} 17... Bb7 {[%clk 0:02:14.2]} 18. cxd5 {[%clk 0:01:11.5]}
18... Nxd5 {[%clk 0:02:13.7]} 19. Bg3 {[%clk 0:01:05.4]} 19... Nc7 {[%clk
0:01:55.6]} 20. Ne4 {[%clk 0:00:57]} 20... Nb5 {[%clk 0:01:52.1]} 21. g5 {[%clk
0:00:40.4]} 21... h5 {[%clk 0:01:50.1]} 22. Nf6+ {[%clk 0:00:40.1]} 22... Bxf6
{[%clk 0:01:51.2]} 23. gxf6 {[%clk 0:00:39.7]} 23... Ncd4 {[%clk 0:01:44.5]} 24.
Qe3 {[%clk 0:00:33.8]} 24... Nf5 {[%clk 0:01:34]} 25. Qf4 {[%clk 0:00:28.3]}
25... Qd5 {[%clk 0:01:25.7]} 26. Ne1 {[%clk 0:00:20]} 26... Qd7 {[%clk
0:01:25.8]} 27. Bh3 {[%clk 0:00:18.9]} 27... Nbd4 {[%clk 0:01:25.5]} 28. Nc2
{[%clk 0:00:13.5]} 28... Ne2+ {[%clk 0:01:24.6]} 0-1

[Event "*** Titled Tuesday 3|2 Blitz"]
[Site "Chess.com"]
[Date "2016.05.03"]
[Round "1"]
[White "vovkcoach"]
[Black "sorito"]
[Result "1-0"]
[WhiteElo "2518"]
[BlackElo "2171"]
[TimeControl "180+2"]
[EndTime "11:07:08 PDT"]
[Termination "vovkcoach won by resignation"]

1. d4 {[%clk 0:02:59.3]} 1... Nf6 {[%clk 0:02:59.8]} 2. c4 {[%clk 0:03:01.2]}
2... e6 {[%clk 0:03:01]} 3. Nf3 {[%clk 0:02:59.7]} 3... c5 {[%clk 0:03:01.1]} 4.
d5 {[%clk 0:02:59.4]} 4... d6 {[%clk 0:03:02.5]} 5. Nc3 {[%clk 0:02:58.9]} 5...
exd5 {[%clk 0:03:01.7]} 6. cxd5 {[%clk 0:03:00.8]} 6... g6 {[%clk 0:03:02.7]} 7.
g3 {[%clk 0:03:02]} 7... Bg7 {[%clk 0:03:03.9]} 8. Bg2 {[%clk 0:03:03.6]} 8...
O-O {[%clk 0:03:03.9]} 9. O-O {[%clk 0:03:05.1]} 9... a6 {[%clk 0:03:05.4]} 10.
a4 {[%clk 0:03:05.4]} 10... Nbd7 {[%clk 0:03:06.2]} 11. Bf4 {[%clk 0:03:05]}
11... Qc7 {[%clk 0:03:06.3]} 12. h3 {[%clk 0:02:40.3]} 12... Re8 {[%clk
0:03:07]} 13. g4 {[%clk 0:02:41.2]} 13... Ne4 {[%clk 0:03:05.6]} 14. Qc2 {[%clk
0:02:38.6]} 14... Nxc3 {[%clk 0:03:03.4]} 15. bxc3 {[%clk 0:02:40.5]} 15... Ne5
{[%clk 0:03:04.3]} 16. Nxe5 {[%clk 0:02:39.6]} 16... Bxe5 {[%clk 0:03:04.6]} 17.
Bxe5 {[%clk 0:02:40.8]} 17... Rxe5 {[%clk 0:03:04.8]} 18. e4 {[%clk 0:02:35.2]}
18... Bd7 {[%clk 0:02:41]} 19. f4 {[%clk 0:02:35.9]} 19... Ree8 {[%clk
0:02:39.7]} 20. a5 {[%clk 0:02:33.9]} 20... c4 {[%clk 0:02:40.7]} 21. Kh1 {[%clk
0:02:31.3]} 21... Qc5 {[%clk 0:02:39.5]} 22. Qd2 {[%clk 0:02:20.7]} 22... f6
{[%clk 0:02:23.9]} 23. g5 {[%clk 0:02:14]} 23... fxg5 {[%clk 0:02:20]} 24. f5
{[%clk 0:02:14.6]} 24... h6 {[%clk 0:01:45.2]} 25. fxg6 {[%clk 0:02:14.6]} 25...
Rf8 {[%clk 0:01:46.4]} 26. h4 {[%clk 0:02:10.8]} 26... Bg4 {[%clk 0:01:36.1]}
27. hxg5 {[%clk 0:02:09]} 27... h5 {[%clk 0:01:37.5]} 28. Rf6 {[%clk 0:02:07.2]}
28... Qc7 {[%clk 0:01:20.3]} 29. Raf1 {[%clk 0:02:05.6]} 29... Qe7 {[%clk
0:01:21.4]} 30. Qd4 {[%clk 0:01:58.5]} 30... Qe5 {[%clk 0:01:06.9]} 31. Qxe5
{[%clk 0:01:57.2]} 31... dxe5 {[%clk 0:01:07.8]} 32. Kh2 {[%clk 0:01:56.2]}
32... Kg7 {[%clk 0:00:57.9]} 33. Bh3 {[%clk 0:01:56.3]} 33... Be2 {[%clk
0:00:49]} 34. Rxf8 {[%clk 0:01:50.2]} 34... Rxf8 {[%clk 0:00:48.9]} 35. Rxf8
{[%clk 0:01:52.1]} 35... Kxf8 {[%clk 0:00:50.3]} 36. d6 {[%clk 0:01:54]} 1-0

[Event "*** Titled Tuesday 3|2 Blitz"]
[Site "Chess.com"]
[Date "2016.05.03"]
[Round "1"]
[White "rhungaski"]
[Black "FLchessplayer"]
[Result "1-0"]
[WhiteElo "2458"]
[BlackElo "2082"]
[TimeControl "180+2"]
[EndTime "11:07:10 PDT"]
[Termination "rhungaski won by resignation"]

1. Nf3 {[%clk 0:02:55.6]} 1... c5 {[%clk 0:03:00.7]} 2. c4 {[%clk 0:02:54.1]}
2... Nc6 {[%clk 0:03:01.6]} 3. Nc3 {[%clk 0:02:54.6]} 3... g6 {[%clk 0:03:02.9]}
4. g3 {[%clk 0:02:55.9]} 4... Bg7 {[%clk 0:03:04.1]} 5. Bg2 {[%clk 0:02:57.8]}
5... d6 {[%clk 0:03:05.4]} 6. O-O {[%clk 0:02:58.4]} 6... e5 {[%clk 0:03:06.6]}
7. a3 {[%clk 0:02:51.6]} 7... a5 {[%clk 0:03:06.8]} 8. Ne1 {[%clk 0:02:48]} 8...
Nge7 {[%clk 0:03:06.4]} 9. Nc2 {[%clk 0:02:48.6]} 9... O-O {[%clk 0:03:06.6]}
10. Ne3 {[%clk 0:02:49.8]} 10... h6 {[%clk 0:03:06.9]} 11. Rb1 {[%clk
0:02:46.8]} 11... Bf5 {[%clk 0:03:02.6]} 12. d3 {[%clk 0:02:46.3]} 12... Be6
{[%clk 0:02:57.6]} 13. Ned5 {[%clk 0:02:46]} 13... Nf5 {[%clk 0:02:52.3]} 14. e3
{[%clk 0:02:38.9]} 14... Rb8 {[%clk 0:02:48.9]} 15. Bd2 {[%clk 0:02:36.9]} 15...
b6 {[%clk 0:02:49.5]} 16. b4 {[%clk 0:02:34.5]} 16... axb4 {[%clk 0:02:47.3]}
17. axb4 {[%clk 0:02:36.4]} 17... Kh7 {[%clk 0:02:46.6]} 18. Qc2 {[%clk
0:02:31.3]} 18... Nce7 {[%clk 0:02:34.6]} 19. Ra1 {[%clk 0:02:20.2]} 19... Nxd5
{[%clk 0:02:33.8]} 20. Nxd5 {[%clk 0:02:20.2]} 20... Ne7 {[%clk 0:02:33.9]} 21.
Nxe7 {[%clk 0:02:04]} 21... Qxe7 {[%clk 0:02:30.8]} 22. Ra6 {[%clk 0:02:05.9]}
22... Rfd8 {[%clk 0:02:26.8]} 23. Rb1 {[%clk 0:02:02.5]} 23... f5 {[%clk
0:02:21.3]} 24. Bc6 {[%clk 0:01:59.6]} 24... Qc7 {[%clk 0:02:20.4]} 25. Qa4
{[%clk 0:01:58.3]} 25... Rbc8 {[%clk 0:02:05]} 26. b5 {[%clk 0:01:56.5]} 26...
d5 {[%clk 0:01:53.6]} 27. Ra7 {[%clk 0:01:33.2]} 27... Qd6 {[%clk 0:01:49.2]}
28. Bc3 {[%clk 0:01:25.9]} 28... dxc4 {[%clk 0:01:45]} 29. dxc4 {[%clk
0:01:27.8]} 29... Kh8 {[%clk 0:01:38]} 30. Qa1 {[%clk 0:01:24.9]} 30... Rc7
{[%clk 0:01:19.7]} 31. Ra4 {[%clk 0:01:22.9]} 31... e4 {[%clk 0:01:15.3]} 32.
Bxg7+ {[%clk 0:01:20.3]} 32... Rxg7 {[%clk 0:01:16.3]} 33. Ra7 {[%clk
0:01:19.4]} 33... Rg8 {[%clk 0:01:16.5]} 34. Rd1 {[%clk 0:01:17.2]} 34... Qb8
{[%clk 0:01:12]} 35. Rxg7 {[%clk 0:01:17.4]} 35... Rxg7 {[%clk 0:01:11.3]} 36.
Qf6 {[%clk 0:01:19.3]} 36... Bg8 {[%clk 0:01:02.7]} 37. Rd7 {[%clk 0:01:16.3]}
1-0

[Event "*** Titled Tuesday 3|2 Blitz"]
[Site "Chess.com"]
[Date "2016.05.03"]
[Round "1"]
[White "GeorgMeier"]
[Black "rookoco"]
[Result "1-0"]
[WhiteElo "2751"]
[BlackElo "2315"]
[TimeControl "180+2"]
[EndTime "11:07:15 PDT"]
[Termination "GeorgMeier won by resignation"]

1. Nf3 {[%clk 0:03:01.9]} 1... d5 {[%clk 0:03:00.4]} 2. g3 {[%clk 0:03:02.1]}
2... g6 {[%clk 0:03:01.3]} 3. Bg2 {[%clk 0:03:03]} 3... Bg7 {[%clk 0:03:02.2]}
4. d4 {[%clk 0:03:04.6]} 4... Nf6 {[%clk 0:03:03.1]} 5. O-O {[%clk 0:03:06.2]}
5... c6 {[%clk 0:03:04.2]} 6. Bf4 {[%clk 0:03:06.7]} 6... O-O {[%clk 0:03:05]}
7. Nbd2 {[%clk 0:03:06.7]} 7... Bf5 {[%clk 0:03:03.1]} 8. c3 {[%clk 0:03:02.3]}
8... Nbd7 {[%clk 0:03:02.2]} 9. Qb3 {[%clk 0:03:01.5]} 9... Qb6 {[%clk
0:03:01.9]} 10. h3 {[%clk 0:03:01.9]} 10... Qa6 {[%clk 0:03:02]} 11. Rfe1 {[%clk
0:03:01.1]} 11... Ne4 {[%clk 0:03:01.8]} 12. a4 {[%clk 0:02:46.5]} 12... Rfe8
{[%clk 0:02:58.6]} 13. g4 {[%clk 0:02:45]} 13... Nxd2 {[%clk 0:02:56.9]} 14.
Nxd2 {[%clk 0:02:44.8]} 14... Be6 {[%clk 0:02:46.3]} 15. e3 {[%clk 0:02:45.8]}
15... c5 {[%clk 0:02:44.1]} 16. Qb5 {[%clk 0:02:44]} 16... Qc6 {[%clk
0:02:30.8]} 17. Nb3 {[%clk 0:02:44.2]} 17... Rec8 {[%clk 0:02:21]} 18. Na5
{[%clk 0:02:42]} 18... Qxb5 {[%clk 0:01:47.2]} 19. axb5 {[%clk 0:02:43.9]} 19...
cxd4 {[%clk 0:01:30]} 20. exd4 {[%clk 0:02:44.2]} 20... b6 {[%clk 0:01:20]} 21.
Nc6 {[%clk 0:02:44.3]} 21... Re8 {[%clk 0:01:21.3]} 22. Nxa7 {[%clk 0:02:40]}
22... Nf6 {[%clk 0:01:15.6]} 23. Nc6 {[%clk 0:02:38.2]} 23... Kf8 {[%clk
0:01:16.1]} 24. Bc7 {[%clk 0:02:34.8]} 24... Nd7 {[%clk 0:01:16.8]} 25. Rxa8
{[%clk 0:02:26.6]} 25... Rxa8 {[%clk 0:01:17.1]} 26. Nd8 {[%clk 0:02:28.2]}
26... Ra7 {[%clk 0:01:08.4]} 27. Bg3 {[%clk 0:02:25.4]} 27... Ra2 {[%clk
0:01:06.7]} 28. Nxe6+ {[%clk 0:02:25.7]} 28... fxe6 {[%clk 0:01:07.9]} 29. Rxe6
{[%clk 0:02:27.3]} 29... Rxb2 {[%clk 0:01:09.3]} 30. Bxd5 {[%clk 0:02:25.7]}
30... Rxb5 {[%clk 0:01:09.7]} 31. Be4 {[%clk 0:02:05.7]} 31... Nf6 {[%clk
0:01:02.8]} 32. Bd3 {[%clk 0:02:05.1]} 32... Rb3 {[%clk 0:00:58.1]} 33. Rc6
{[%clk 0:02:06]} 33... Ke8 {[%clk 0:00:57.7]} 34. Bc4 {[%clk 0:02:00.5]} 34...
Rb1+ {[%clk 0:00:53.6]} 35. Kg2 {[%clk 0:02:01.5]} 35... Bh6 {[%clk 0:00:41.7]}
36. Be6 {[%clk 0:02:00.4]} 36... Kf8 {[%clk 0:00:42.9]} 37. Be5 {[%clk
0:01:52.5]} 37... Bd2 {[%clk 0:00:24.5]} 38. Rc8+ {[%clk 0:01:53]} 38... Kg7
{[%clk 0:00:25.1]} 39. h4 {[%clk 0:01:50.2]} 39... g5 {[%clk 0:00:25.9]} 40.
hxg5 {[%clk 0:01:45.1]} 40... Bxg5 {[%clk 0:00:26.3]} 41. f4 {[%clk 0:01:46.3]}
41... Bh4 {[%clk 0:00:22.8]} 42. g5 {[%clk 0:01:45.5]} 1-0

[Event "*** Titled Tuesday 3|2 Blitz"]
[Site "Chess.com"]
[Date "2016.05.03"]
[Round "1"]
[White "iturrizaga"]
[Black "hellokostya"]
[Result "1-0"]
[WhiteElo "2544"]
[BlackElo "2188"]
[TimeControl "180+2"]
[EndTime "11:07:27 PDT"]
[Termination "iturrizaga won by resignation"]

1. Nf3 {[%clk 0:03:01.9]} 1... Nf6 {[%clk 0:03:00.3]} 2. c4 {[%clk 0:03:03.8]}
2... g6 {[%clk 0:03:01.8]} 3. Nc3 {[%clk 0:03:05.4]} 3... Bg7 {[%clk 0:03:03.4]}
4. g3 {[%clk 0:03:06.8]} 4... O-O {[%clk 0:03:04.2]} 5. Bg2 {[%clk 0:03:08.3]}
5... d6 {[%clk 0:03:05.8]} 6. d4 {[%clk 0:03:09.5]} 6... Nc6 {[%clk 0:03:06.8]}
7. O-O {[%clk 0:03:09.9]} 7... a6 {[%clk 0:03:08.2]} 8. Bf4 {[%clk 0:03:05.2]}
8... Rb8 {[%clk 0:03:05.2]} 9. Rc1 {[%clk 0:03:05.7]} 9... h6 {[%clk 0:03:05.9]}
10. Qd2 {[%clk 0:02:49.8]} 10... g5 {[%clk 0:03:01.1]} 11. Be3 {[%clk 0:02:50]}
11... Ng4 {[%clk 0:02:59.6]} 12. Rfd1 {[%clk 0:02:45.3]} 12... e6 {[%clk
0:02:54.4]} 13. d5 {[%clk 0:02:43.8]} 13... Nxe3 {[%clk 0:02:53.2]} 14. Qxe3
{[%clk 0:02:44.5]} 14... Ne7 {[%clk 0:02:51.7]} 15. dxe6 {[%clk 0:02:43.4]}
15... fxe6 {[%clk 0:02:50.5]} 16. Nd4 {[%clk 0:02:34.9]} 16... Nf5 {[%clk
0:02:26.8]} 17. Nxf5 {[%clk 0:02:34.2]} 17... Rxf5 {[%clk 0:02:28.7]} 18. Qa7
{[%clk 0:02:22.6]} 18... Bd7 {[%clk 0:02:17.1]} 19. Bxb7 {[%clk 0:02:22.3]}
19... Rf8 {[%clk 0:01:50.1]} 20. b3 {[%clk 0:02:18]} 20... Qf6 {[%clk
0:01:39.2]} 21. Bf3 {[%clk 0:02:12.7]} 21... Rbc8 {[%clk 0:01:05.4]} 22. Ne4
{[%clk 0:01:47.6]} 22... Qe7 {[%clk 0:00:58]} 23. Qe3 {[%clk 0:01:37.1]} 23...
a5 {[%clk 0:00:56.2]} 24. Nc3 {[%clk 0:01:35]} 24... Be5 {[%clk 0:00:52.1]} 25.
c5 {[%clk 0:01:34.3]} 25... Qg7 {[%clk 0:00:48.5]} 26. c6 {[%clk 0:01:26]} 26...
Be8 {[%clk 0:00:41.4]} 27. Nb5 {[%clk 0:01:27.1]} 27... Bf4 {[%clk 0:00:42.1]}
28. Qxe6+ {[%clk 0:01:26.5]} 28... Bf7 {[%clk 0:00:40.3]} 29. Qe4 {[%clk
0:01:18.1]} 29... Bxc1 {[%clk 0:00:38.6]} 30. Rxc1 {[%clk 0:01:20]} 30... Bg6
{[%clk 0:00:38.3]} 31. Qd4 {[%clk 0:01:19.2]} 31... a4 {[%clk 0:00:35.8]} 32.
bxa4 {[%clk 0:00:57.1]} 32... Rfe8 {[%clk 0:00:33.9]} 33. Qxg7+ {[%clk
0:00:50.7]} 33... Kxg7 {[%clk 0:00:35.8]} 34. Bg4 {[%clk 0:00:52.3]} 1-0